{"text_format":"1","workbook":"xlsx","n_sheets":7,"sheets":["Ремонт","Сводка","Сводная","ОТЧЁТ","Взносы","Списки","Улицы"],"not_rendered":{"charts":0,"images":0,"macros":1,"external_links":0,"defined_names":4,"comments":0,"pivot_tables":1},"unopened":[],"bounds":{"document_bytes":16777216,"sheet_cells":100000,"rows_first":2000,"rows_last":500,"rows_between":2000,"halvings":0,"cell_chars":16384,"cell_head_chars":4096},"cells_cut":0,"cells_raw":0,"read":"whole","date_system":"1900"}

{"sheet":"Ремонт","index":0,"n_rows":10,"n_cols":15,"rows_kept":10,"cut":false,"hidden":false,"merged":[]}
[]
["№ п/п","Период проведения работ","Улица","№ дома","Фамилия И.О.","Виды работ","ПСД, 1 %","Заработанная плата, руб.","Начисления (сметная прибыль), руб.","Материал +ТЗР 4%, руб.","ЭММ, в т.ч. ЗПМ (общеэксплуатационные расходы), руб.","Прочие (накладные расходы), руб.","возмещение НДС, руб.","Итого (без НДС), руб.","Итого (с НДС), руб."]
[{"$f":"IF(ISBLANK(B3),\"\",MAX(A$2:A2)+1)","v":1},"2016-02-01","40 лет Победы",94,"Иванов И.И.","Установка ОДПУ горячей воды 2 шт.",6.21,217.79,106.7,116.16,0.68,179.97,null,{"$f":"SUM(G3:L3)","v":627.51},{"$f":"N3*1.18","v":740.46179999999993}]
[{"$f":"IF(ISBLANK(B4),\"\",MAX(A$2:A3)+1)","v":2},"2016-02-01","Белинского",28,"Петров П.П.","Проверка ИПУ ХВС",7,222,100,555,0.67,150.1,null,1034.77,1221.0285999999999]
[{"$f":"IF(ISBLANK(B5),\"\",MAX(A$2:A4)+1)","v":3},"2016-05-01","40 лет Победы",94,"Иванов И.И.","Ремонт кровли (подъезд №1, кв. 37, 60)",6.21,150,200,51.25,0.68,18,null,426.14000000000004,502.84520000000003]
[{"$f":"IF(ISBLANK(B6),\"\",MAX(A$2:A5)+1)","v":4},"2016-06-01","40 лет Победы",94,"Иванов И.И.","Текущий ремонт электроосвещения в подъездах №2 и №3",6.22,1256.25,240,4025,0.67,248,null,5776.14,6815.8451999999997]
[{"$f":"IF(ISBLANK(B7),\"\",MAX(A$2:A6)+1)","v":5},"2016-06-01","Белинского",28,"Петров П.П.","Ремонт откосов",6.21,12548,256,456,0.78,300,null,13566.99,16009.048199999999]
[{"$f":"IF(ISBLANK(B8),\"\",MAX(A$2:A7)+1)","v":6},"2016-07-01","Белинского",30,"Петров П.П.","Ремонт откосов",6.21,12546,255,454,10,200,null,13471.21,15896.027799999998]
[{"$f":"IF(ISBLANK(B9),\"\",MAX(A$2:A8)+1)","v":7},"2016-07-01","40 лет Победы",36,"Иванов И.И.","Ремонт кровли",6.21,4000,500,3000,52,2000,null,9558.2099999999991,11278.687799999998]
[{"$f":"IF(ISBLANK(B10),\"\",MAX(A$2:A9)+1)","v":8},"2016-07-01","40 лет Победы",100,"Иванов И.И.","Ремонт контейнерных площадок",6.21,2547,200,1234,0.67,600,null,4587.88,5413.6984000000002]

{"sheet":"Сводка","index":1,"n_rows":7,"n_cols":4,"rows_kept":7,"cut":false,"hidden":false,"merged":[[0,0,0,3]]}
["Отчет о начислениях по текущему ремонту МЖД за 2016 год"]
["Наименование улицы","№ дома","Остаток средств по текущему ремонту на 01.01.2016 г., руб.","Начислено за 2016 г., руб."]
["40 лет Победы",36,56241.58]
["40 лет Победы",94,-52734.899999999965,1000]
["Белинского",28,371412.5698,222184.95]
["Белинского",30,119937.66,110705.16]
["ИТОГО",null,{"$f":"SUM(C4:C6)","v":438615.32980000007},{"$f":"SUM(D4:D6)","v":333890.11}]

{"sheet":"Сводная","index":2,"n_rows":10,"n_cols":5,"rows_kept":10,"cut":false,"hidden":false,"merged":[]}
["Sum of Итого (с НДС), руб."]
["Улица","№ дома","Период проведения работ","Виды работ","Total"]
["40 лет Победы",36,"2016-07-01","Ремонт кровли",11278.687799999998]
["40 лет Победы",94,"2016-02-01","Установка ОДПУ горячей воды 2 шт.",740.46179999999993]
["40 лет Победы",94,"2016-05-01","Ремонт кровли (подъезд №1, кв. 37, 60)",502.84520000000003]
["40 лет Победы",94,"2016-06-01","Текущий ремонт электроосвещения в подъездах №2 и №3",6815.8451999999997]
["40 лет Победы",100,"2016-07-01","Ремонт контейнерных площадок",5413.6984000000002]
["Белинского",28,"2016-02-01","Проверка ИПУ ХВС",1221.0285999999999]
["Белинского",28,"2016-06-01","Ремонт откосов",16009.048199999999]
["Белинского",30,"2016-07-01","Ремонт откосов",15896.027799999998]

{"sheet":"ОТЧЁТ","index":3,"n_rows":19,"n_cols":9,"rows_kept":19,"cut":false,"hidden":false,"merged":[[0,0,0,8]]}
["Список домов на 2016"]
["Наименование улицы","№ дома","Остаток средств по текущему ремонту на 01.01.2016 г., руб.","Начислено за 2016 г., руб.","Выполнено работ по текущему ремонту, руб.","Месяц","Описание работ","Стоимость, руб.","Остаток средств по текущему ремонту на 01.01.2017 г., руб."]
[{"$f":"IF(Сводная!A3<>0,Сводная!A3,IF(Сводная!A2<>0,\"ИТОГО:\",\"\"))","v":"40 лет Победы"},{"$f":"IF(Сводная!B3>0,Сводная!B3,\"\")","v":36},{"$f":"IF(A3=\"ИТОГО:\",SUM(C2:C$3),IF($B3<>$B2,SUMIFS(Взносы[Остаток средств по текущему ремонту на 01.01.2016 г., руб.],Взносы[Наименование улицы],$A3,Взносы[№ дома],$B3),0))","v":56241.58},{"$f":"IF(A3=\"ИТОГО:\",SUM(D2:D$3),IF($B3<>$B2,SUMIFS(Взносы[Начислено за 2016 г., руб.],Взносы[Наименование улицы],$A3,Взносы[№ дома],$B3),0))","v":0},{"$f":"IF(B3=B2,,SUMIFS(Сводная!E:E,Сводная!A:A,A3,Сводная!B:B,B3))","v":11278.687799999998},{"$f":"IF(Сводная!C3>0,Сводная!C3,\"\")","v":"2016-07-01"},{"$f":"IF(Сводная!D3>0,Сводная!D3,\"\")","v":"Ремонт кровли"},{"$f":"IF(Сводная!E3>0,Сводная!E3,\"\")","v":11278.687799999998},{"$f":"IF(B3=B2,,C3+D3-E3)","v":44962.892200000002}]
[{"$f":"IF(Сводная!A4<>0,Сводная!A4,IF(Сводная!A3<>0,\"ИТОГО:\",\"\"))","v":"40 лет Победы"},{"$f":"IF(Сводная!B4>0,Сводная!B4,\"\")","v":94},{"$f":"IF(A4=\"ИТОГО:\",SUM(C$3:C3),IF($B4<>$B3,SUMIFS(Взносы[Остаток средств по текущему ремонту на 01.01.2016 г., руб.],Взносы[Наименование улицы],$A4,Взносы[№ дома],$B4),0))","v":-52734.899999999965},{"$f":"IF(A4=\"ИТОГО:\",SUM(D$3:D3),IF($B4<>$B3,SUMIFS(Взносы[Начислено за 2016 г., руб.],Взносы[Наименование улицы],$A4,Взносы[№ дома],$B4),0))","v":1000},{"$f":"IF(B4=B3,,SUMIFS(Сводная!E:E,Сводная!A:A,A4,Сводная!B:B,B4))","v":8059.1521999999995},{"$f":"IF(Сводная!C4>0,Сводная!C4,\"\")","v":"2016-02-01"},{"$f":"IF(Сводная!D4>0,Сводная!D4,\"\")","v":"Установка ОДПУ горячей воды 2 шт."},{"$f":"IF(Сводная!E4>0,Сводная!E4,\"\")","v":740.46179999999993},{"$f":"IF(B4=B3,,C4+D4-E4)","v":-59794.052199999962}]
[{"$f":"IF(Сводная!A5<>0,Сводная!A5,IF(Сводная!A4<>0,\"ИТОГО:\",\"\"))","v":"40 лет Победы"},{"$f":"IF(Сводная!B5>0,Сводная!B5,\"\")","v":94},{"$f":"IF(A5=\"ИТОГО:\",SUM(C$3:C4),IF($B5<>$B4,SUMIFS(Взносы[Остаток средств по текущему ремонту на 01.01.2016 г., руб.],Взносы[Наименование улицы],$A5,Взносы[№ дома],$B5),0))","v":0},{"$f":"IF(A5=\"ИТОГО:\",SUM(D$3:D4),IF($B5<>$B4,SUMIFS(Взносы[Начислено за 2016 г., руб.],Взносы[Наименование улицы],$A5,Взносы[№ дома],$B5),0))","v":0},{"$f":"IF(B5=B4,,SUMIFS(Сводная!E:E,Сводная!A:A,A5,Сводная!B:B,B5))","v":0},{"$f":"IF(Сводная!C5>0,Сводная!C5,\"\")","v":"2016-05-01"},{"$f":"IF(Сводная!D5>0,Сводная!D5,\"\")","v":"Ремонт кровли (подъезд №1, кв. 37, 60)"},{"$f":"IF(Сводная!E5>0,Сводная!E5,\"\")","v":502.84520000000003},{"$f":"IF(B5=B4,,C5+D5-E5)","v":0}]
[{"$f":"IF(Сводная!A6<>0,Сводная!A6,IF(Сводная!A5<>0,\"ИТОГО:\",\"\"))","v":"40 лет Победы"},{"$f":"IF(Сводная!B6>0,Сводная!B6,\"\")","v":94},{"$f":"IF(A6=\"ИТОГО:\",SUM(C$3:C5),IF($B6<>$B5,SUMIFS(Взносы[Остаток средств по текущему ремонту на 01.01.2016 г., руб.],Взносы[Наименование улицы],$A6,Взносы[№ дома],$B6),0))","v":0},{"$f":"IF(A6=\"ИТОГО:\",SUM(D$3:D5),IF($B6<>$B5,SUMIFS(Взносы[Начислено за 2016 г., руб.],Взносы[Наименование улицы],$A6,Взносы[№ дома],$B6),0))","v":0},{"$f":"IF(B6=B5,,SUMIFS(Сводная!E:E,Сводная!A:A,A6,Сводная!B:B,B6))","v":0},{"$f":"IF(Сводная!C6>0,Сводная!C6,\"\")","v":"2016-06-01"},{"$f":"IF(Сводная!D6>0,Сводная!D6,\"\")","v":"Текущий ремонт электроосвещения в подъездах №2 и №3"},{"$f":"IF(Сводная!E6>0,Сводная!E6,\"\")","v":6815.8451999999997},{"$f":"IF(B6=B5,,C6+D6-E6)","v":0}]
[{"$f":"IF(Сводная!A7<>0,Сводная!A7,IF(Сводная!A6<>0,\"ИТОГО:\",\"\"))","v":"40 лет Победы"},{"$f":"IF(Сводная!B7>0,Сводная!B7,\"\")","v":100},{"$f":"IF(A7=\"ИТОГО:\",SUM(C$3:C6),IF($B7<>$B6,SUMIFS(Взносы[Остаток средств по текущему ремонту на 01.01.2016 г., руб.],Взносы[Наименование улицы],$A7,Взносы[№ дома],$B7),0))","v":0},{"$f":"IF(A7=\"ИТОГО:\",SUM(D$3:D6),IF($B7<>$B6,SUMIFS(Взносы[Начислено за 2016 г., руб.],Взносы[Наименование улицы],$A7,Взносы[№ дома],$B7),0))","v":0},{"$f":"IF(B7=B6,,SUMIFS(Сводная!E:E,Сводная!A:A,A7,Сводная!B:B,B7))","v":5413.6984000000002},{"$f":"IF(Сводная!C7>0,Сводная!C7,\"\")","v":"2016-07-01"},{"$f":"IF(Сводная!D7>0,Сводная!D7,\"\")","v":"Ремонт контейнерных площадок"},{"$f":"IF(Сводная!E7>0,Сводная!E7,\"\")","v":5413.6984000000002},{"$f":"IF(B7=B6,,C7+D7-E7)","v":-5413.6984000000002}]
[{"$f":"IF(Сводная!A8<>0,Сводная!A8,IF(Сводная!A7<>0,\"ИТОГО:\",\"\"))","v":"Белинского"},{"$f":"IF(Сводная!B8>0,Сводная!B8,\"\")","v":28},{"$f":"IF(A8=\"ИТОГО:\",SUM(C$3:C7),IF($B8<>$B7,SUMIFS(Взносы[Остаток средств по текущему ремонту на 01.01.2016 г., руб.],Взносы[Наименование улицы],$A8,Взносы[№ дома],$B8),0))","v":371412.5698},{"$f":"IF(A8=\"ИТОГО:\",SUM(D$3:D7),IF($B8<>$B7,SUMIFS(Взносы[Начислено за 2016 г., руб.],Взносы[Наименование улицы],$A8,Взносы[№ дома],$B8),0))","v":222184.95},{"$f":"IF(B8=B7,,SUMIFS(Сводная!E:E,Сводная!A:A,A8,Сводная!B:B,B8))","v":17230.076799999999},{"$f":"IF(Сводная!C8>0,Сводная!C8,\"\")","v":"2016-02-01"},{"$f":"IF(Сводная!D8>0,Сводная!D8,\"\")","v":"Проверка ИПУ ХВС"},{"$f":"IF(Сводная!E8>0,Сводная!E8,\"\")","v":1221.0285999999999},{"$f":"IF(B8=B7,,C8+D8-E8)","v":576367.44299999997}]
[{"$f":"IF(Сводная!A9<>0,Сводная!A9,IF(Сводная!A8<>0,\"ИТОГО:\",\"\"))","v":"Белинского"},{"$f":"IF(Сводная!B9>0,Сводная!B9,\"\")","v":28},{"$f":"IF(A9=\"ИТОГО:\",SUM(C$3:C8),IF($B9<>$B8,SUMIFS(Взносы[Остаток средств по текущему ремонту на 01.01.2016 г., руб.],Взносы[Наименование улицы],$A9,Взносы[№ дома],$B9),0))","v":0},{"$f":"IF(A9=\"ИТОГО:\",SUM(D$3:D8),IF($B9<>$B8,SUMIFS(Взносы[Начислено за 2016 г., руб.],Взносы[Наименование улицы],$A9,Взносы[№ дома],$B9),0))","v":0},{"$f":"IF(B9=B8,,SUMIFS(Сводная!E:E,Сводная!A:A,A9,Сводная!B:B,B9))","v":0},{"$f":"IF(Сводная!C9>0,Сводная!C9,\"\")","v":"2016-06-01"},{"$f":"IF(Сводная!D9>0,Сводная!D9,\"\")","v":"Ремонт откосов"},{"$f":"IF(Сводная!E9>0,Сводная!E9,\"\")","v":16009.048199999999},{"$f":"IF(B9=B8,,C9+D9-E9)","v":0}]
[{"$f":"IF(Сводная!A10<>0,Сводная!A10,IF(Сводная!A9<>0,\"ИТОГО:\",\"\"))","v":"Белинского"},{"$f":"IF(Сводная!B10>0,Сводная!B10,\"\")","v":30},{"$f":"IF(A10=\"ИТОГО:\",SUM(C$3:C9),IF($B10<>$B9,SUMIFS(Взносы[Остаток средств по текущему ремонту на 01.01.2016 г., руб.],Взносы[Наименование улицы],$A10,Взносы[№ дома],$B10),0))","v":119937.66},{"$f":"IF(A10=\"ИТОГО:\",SUM(D$3:D9),IF($B10<>$B9,SUMIFS(Взносы[Начислено за 2016 г., руб.],Взносы[Наименование улицы],$A10,Взносы[№ дома],$B10),0))","v":110705.16},{"$f":"IF(B10=B9,,SUMIFS(Сводная!E:E,Сводная!A:A,A10,Сводная!B:B,B10))","v":15896.027799999998},{"$f":"IF(Сводная!C10>0,Сводная!C10,\"\")","v":"2016-07-01"},{"$f":"IF(Сводная!D10>0,Сводная!D10,\"\")","v":"Ремонт откосов"},{"$f":"IF(Сводная!E10>0,Сводная!E10,\"\")","v":15896.027799999998},{"$f":"IF(B10=B9,,C10+D10-E10)","v":214746.7922}]
[{"$f":"IF(Сводная!A11<>0,Сводная!A11,IF(Сводная!A10<>0,\"ИТОГО:\",\"\"))","v":"ИТОГО:"},{"$f":"IF(Сводная!B11>0,Сводная!B11,\"\")","v":""},{"$f":"IF(A11=\"ИТОГО:\",SUM(C$3:C10),IF($B11<>$B10,SUMIFS(Взносы[Остаток средств по текущему ремонту на 01.01.2016 г., руб.],Взносы[Наименование улицы],$A11,Взносы[№ дома],$B11),0))","v":494856.90980000002},{"$f":"IF(A11=\"ИТОГО:\",SUM(D$3:D10),IF($B11<>$B10,SUMIFS(Взносы[Начислено за 2016 г., руб.],Взносы[Наименование улицы],$A11,Взносы[№ дома],$B11),0))","v":333890.11},{"$f":"IF(B11=B10,,SUMIFS(Сводная!E:E,Сводная!A:A,A11,Сводная!B:B,B11))","v":0},{"$f":"IF(Сводная!C11>0,Сводная!C11,\"\")","v":""},{"$f":"IF(Сводная!D11>0,Сводная!D11,\"\")","v":""},{"$f":"IF(Сводная!E11>0,Сводная!E11,\"\")","v":""},{"$f":"IF(B11=B10,,C11+D11-E11)","v":828747.01980000001}]
[{"$f":"IF(Сводная!A12<>0,Сводная!A12,IF(Сводная!A11<>0,\"ИТОГО:\",\"\"))","v":""},{"$f":"IF(Сводная!B12>0,Сводная!B12,\"\")","v":""},{"$f":"IF(A12=\"ИТОГО:\",SUM(C$3:C11),IF($B12<>$B11,SUMIFS(Взносы[Остаток средств по текущему ремонту на 01.01.2016 г., руб.],Взносы[Наименование улицы],$A12,Взносы[№ дома],$B12),0))","v":0},{"$f":"IF(A12=\"ИТОГО:\",SUM(D$3:D11),IF($B12<>$B11,SUMIFS(Взносы[Начислено за 2016 г., руб.],Взносы[Наименование улицы],$A12,Взносы[№ дома],$B12),0))","v":0},{"$f":"IF(B12=B11,,SUMIFS(Сводная!E:E,Сводная!A:A,A12,Сводная!B:B,B12))","v":0},{"$f":"IF(Сводная!C12>0,Сводная!C12,\"\")","v":""},{"$f":"IF(Сводная!D12>0,Сводная!D12,\"\")","v":""},{"$f":"IF(Сводная!E12>0,Сводная!E12,\"\")","v":""},{"$f":"IF(B12=B11,,C12+D12-E12)","v":0}]
[{"$f":"IF(Сводная!A13<>0,Сводная!A13,IF(Сводная!A12<>0,\"ИТОГО:\",\"\"))","v":""},{"$f":"IF(Сводная!B13>0,Сводная!B13,\"\")","v":""},{"$f":"IF(A13=\"ИТОГО:\",SUM(C$3:C12),IF($B13<>$B12,SUMIFS(Взносы[Остаток средств по текущему ремонту на 01.01.2016 г., руб.],Взносы[Наименование улицы],$A13,Взносы[№ дома],$B13),0))","v":0},{"$f":"IF(A13=\"ИТОГО:\",SUM(D$3:D12),IF($B13<>$B12,SUMIFS(Взносы[Начислено за 2016 г., руб.],Взносы[Наименование улицы],$A13,Взносы[№ дома],$B13),0))","v":0},{"$f":"IF(B13=B12,,SUMIFS(Сводная!E:E,Сводная!A:A,A13,Сводная!B:B,B13))","v":0},{"$f":"IF(Сводная!C14>0,Сводная!C14,\"\")","v":""},{"$f":"IF(Сводная!D13>0,Сводная!D13,\"\")","v":""},{"$f":"IF(Сводная!E13>0,Сводная!E13,\"\")","v":""},{"$f":"IF(B13=B12,,C13+D13-E13)","v":0}]
[{"$f":"IF(Сводная!A14<>0,Сводная!A14,IF(Сводная!A13<>0,\"ИТОГО:\",\"\"))","v":""},{"$f":"IF(Сводная!B14>0,Сводная!B14,\"\")","v":""},{"$f":"IF(A14=\"ИТОГО:\",SUM(C$3:C13),IF($B14<>$B13,SUMIFS(Взносы[Остаток средств по текущему ремонту на 01.01.2016 г., руб.],Взносы[Наименование улицы],$A14,Взносы[№ дома],$B14),0))","v":0},{"$f":"IF(A14=\"ИТОГО:\",SUM(D$3:D13),IF($B14<>$B13,SUMIFS(Взносы[Начислено за 2016 г., руб.],Взносы[Наименование улицы],$A14,Взносы[№ дома],$B14),0))","v":0},{"$f":"IF(B14=B13,,SUMIFS(Сводная!E:E,Сводная!A:A,A14,Сводная!B:B,B14))","v":0},{"$f":"IF(Сводная!C15>0,Сводная!C15,\"\")","v":""},{"$f":"IF(Сводная!D14>0,Сводная!D14,\"\")","v":""},{"$f":"IF(Сводная!E14>0,Сводная!E14,\"\")","v":""},{"$f":"IF(B14=B13,,C14+D14-E14)","v":0}]
[{"$f":"IF(Сводная!A15<>0,Сводная!A15,IF(Сводная!A14<>0,\"ИТОГО:\",\"\"))","v":""},{"$f":"IF(Сводная!B15>0,Сводная!B15,\"\")","v":""},null,null,{"$f":"IF(B15=B14,,SUMIFS(Сводная!E:E,Сводная!A:A,A15,Сводная!B:B,B15))","v":0}]
[{"$f":"IF(Сводная!A16<>0,Сводная!A16,IF(Сводная!A15<>0,\"ИТОГО:\",\"\"))","v":""},{"$f":"IF(Сводная!B16>0,Сводная!B16,\"\")","v":""},null,null,{"$f":"IF(B16=B15,,SUMIFS(Сводная!E:E,Сводная!A:A,A16,Сводная!B:B,B16))","v":0}]
[{"$f":"IF(Сводная!A17<>0,Сводная!A17,IF(Сводная!A16<>0,\"ИТОГО:\",\"\"))","v":""},{"$f":"IF(Сводная!B17>0,Сводная!B17,\"\")","v":""},null,null,{"$f":"IF(B17=B16,,SUMIFS(Сводная!E:E,Сводная!A:A,A17,Сводная!B:B,B17))","v":0}]
[{"$f":"IF(Сводная!A18<>0,Сводная!A18,\"\")","v":""},{"$f":"IF(Сводная!B18>0,Сводная!B18,\"\")","v":""},null,null,{"$f":"IF(B18=B17,,SUMIFS(Сводная!E:E,Сводная!A:A,A18,Сводная!B:B,B18))","v":0}]
[{"$f":"IF(Сводная!A19<>0,Сводная!A19,\"\")","v":""},{"$f":"IF(Сводная!B19>0,Сводная!B19,\"\")","v":""},null,null,{"$f":"IF(B19=B18,,SUMIFS(Сводная!E:E,Сводная!A:A,A19,Сводная!B:B,B19))","v":0}]

{"sheet":"Взносы","index":4,"n_rows":5,"n_cols":4,"rows_kept":5,"cut":false,"hidden":false,"merged":[]}
["Наименование улицы","№ дома","Остаток средств по текущему ремонту на 01.01.2016 г., руб.","Начислено за 2016 г., руб."]
["40 лет Победы",36,56241.58]
["40 лет Победы",94,-52734.899999999965,1000]
["Белинского",28,371412.5698,222184.95]
["Белинского",30,119937.66,110705.16]

{"sheet":"Списки","index":5,"n_rows":4,"n_cols":1,"rows_kept":4,"cut":false,"hidden":false,"merged":[]}
["Фамилия И.О."]
["Иванов И.И."]
["Петров П.П."]
["Сидоров С.С."]

{"sheet":"Улицы","index":6,"n_rows":54,"n_cols":54,"rows_kept":54,"cut":false,"hidden":false,"merged":[]}
["Улица","40 лет Победы","III Интернационала","Б.Хмельницкого","Белинского","Берёзовая","Больничный пер.","Герцена","Гоголя","Гончарный пер.","Гончарова","Горсовета","Горшенина","Горького","Грибоедова","Димитрова","Жуковского","Калинина","КВ.УПП","Кирова","Колхозная","Комарова","Комгородок","Комиссариатская","Комсомола","Кувина","Куйбышева","Ленина","Лесной пер.","Мичурина","Московская","Нахимова","Первомайская","Пирогова","Пл.Октяб.револ.","Покровского","Полевая","Свердлова","Советская","Стрелецкая","Стрелка","Сурский тракт","Тельмана","Транспортная","Урицкого","Фабричный пер.","Фестивальная","Чайковского","Чапаева","Чернышевского","Школьный проезд","Школьный тупик","Юбилейная","Ярославская"]
["40 лет Победы",7,31,29,28,1,3,29,117,22,24,5,6,4,50,8,22,25,10,9,9,1,9,40,11,44,14,4,"1А",24,25,"2А",7,2,10,7,20,5,14,1,1,"2А",8,21,31,3,"7А",34,3,29,5,10,2,133]
["III Интернационала",9,49,null,30,2,15,null,null,null,45,30,12,"4А",52,null,54,27,12,11,null,2,null,"40А",13,46,null,6,4,23,58,42,76,4,13,null,35,12,37,6,3,null,null,null,33,6,11,36,null,null,"5А",null,5,135]
["Б.Хмельницкого",36,null,null,null,3,"15А",null,null,null,67,32,17,13,"58А",null,62,29,null,"11А",null,3,null,42,30,null,null,"8А",6,null,60,44,78,"5А",null,null,37,null,null,8,4,null,null,null,null,11,null,38,null,null,null,null,10,139]
["Белинского",94,null,null,null,5,null,null,null,null,69,null,22,14,null,null,83,null,null,15,null,"5А",null,71,35,null,null,19,null,null,66,null,88,6,null,null,null,null,null,14,6,null,null,null,null,null,null,42,null,null,null,null,null,141]
["Берёзовая","94А",null,null,null,"5А",null,null,null,null,79,null,"26А",18,null,null,null,null,null,25,null,7,null,77,38,null,null,27,null,null,82,null,89,8,null,null,null,null,null,16,8]
["Больничный пер.",96,null,null,null,null,null,null,null,null,96,null,37,22,null,null,null,null,null,27,null,9,null,79,45,null,null,41,null,null,105,null,null,10,null,null,null,null,null,"41А",10]
["Герцена",100,null,null,null,null,null,null,null,null,115,null,47,36,null,null,null,null,null,31,null,11,null,null,48,null,null,43,null,null,114,null,null,14,null,null,null,null,null,91,11]
["Гоголя",102,null,null,null,null,null,null,null,null,null,null,null,38,null,null,null,null,null,36,null,15,null,null,50,null,null,45,null,null,118,null,null,null,null,null,null,null,null,"100А",12]
["Гончарный пер.",104,null,null,null,null,null,null,null,null,null,null,null,null,null,null,null,null,null,60,null,19,null,null,58,null,null,46,null,null,120,null,null,null,null,null,null,null,null,"100Б",13]
["Гончарова",106,null,null,null,null,null,null,null,null,null,null,null,null,null,null,null,null,null,62,null,null,null,null,60,null,null,48,null,null,121,null,null,null,null,null,null,null,null,"100В",14]
["Горсовета",108,null,null,null,null,null,null,null,null,null,null,null,null,null,null,null,null,null,null,null,null,null,null,62,null,null,66,null,null,123,null,null,null,null,null,null,null,null,"100Г",15]
["Горшенина",110,null,null,null,null,null,null,null,null,null,null,null,null,null,null,null,null,null,null,null,null,null,null,65,null,null,69,null,null,125,null,null,null,null,null,null,null,null,109,17]
["Горького",112,null,null,null,null,null,null,null,null,null,null,null,null,null,null,null,null,null,null,null,null,null,null,67,null,null,70,null,null,173,null,null,null,null,null,null,null,null,111,18]
["Грибоедова",114,null,null,null,null,null,null,null,null,null,null,null,null,null,null,null,null,null,null,null,null,null,null,80,null,null,76,null,null,175,null,null,null,null,null,null,null,null,null,20]
["Димитрова",null,null,null,null,null,null,null,null,null,null,null,null,null,null,null,null,null,null,null,null,null,null,null,100,null,null,77,null,null,null,null,null,null,null,null,null,null,null,null,21]
["Жуковского",null,null,null,null,null,null,null,null,null,null,null,null,null,null,null,null,null,null,null,null,null,null,null,null,null,null,78,null,null,null,null,null,null,null,null,null,null,null,null,22]
["Калинина",null,null,null,null,null,null,null,null,null,null,null,null,null,null,null,null,null,null,null,null,null,null,null,null,null,null,85,null,null,null,null,null,null,null,null,null,null,null,null,23]
["КВ.УПП",null,null,null,null,null,null,null,null,null,null,null,null,null,null,null,null,null,null,null,null,null,null,null,null,null,null,100,null,null,null,null,null,null,null,null,null,null,null,null,25]
["Кирова",null,null,null,null,null,null,null,null,null,null,null,null,null,null,null,null,null,null,null,null,null,null,null,null,null,null,134,null,null,null,null,null,null,null,null,null,null,null,null,27]
["Колхозная",null,null,null,null,null,null,null,null,null,null,null,null,null,null,null,null,null,null,null,null,null,null,null,null,null,null,136,null,null,null,null,null,null,null,null,null,null,null,null,28]
["Комарова",null,null,null,null,null,null,null,null,null,null,null,null,null,null,null,null,null,null,null,null,null,null,null,null,null,null,138,null,null,null,null,null,null,null,null,null,null,null,null,29]
["Комгородок",null,null,null,null,null,null,null,null,null,null,null,null,null,null,null,null,null,null,null,null,null,null,null,null,null,null,null,null,null,null,null,null,null,null,null,null,null,null,null,30]
["Комиссариатская",null,null,null,null,null,null,null,null,null,null,null,null,null,null,null,null,null,null,null,null,null,null,null,null,null,null,null,null,null,null,null,null,null,null,null,null,null,null,null,31]
["Комсомола",null,null,null,null,null,null,null,null,null,null,null,null,null,null,null,null,null,null,null,null,null,null,null,null,null,null,null,null,null,null,null,null,null,null,null,null,null,null,null,32]
["Кувина",null,null,null,null,null,null,null,null,null,null,null,null,null,null,null,null,null,null,null,null,null,null,null,null,null,null,null,null,null,null,null,null,null,null,null,null,null,null,null,34]
["Куйбышева",null,null,null,null,null,null,null,null,null,null,null,null,null,null,null,null,null,null,null,null,null,null,null,null,null,null,null,null,null,null,null,null,null,null,null,null,null,null,null,36]
["Ленина",null,null,null,null,null,null,null,null,null,null,null,null,null,null,null,null,null,null,null,null,null,null,null,null,null,null,null,null,null,null,null,null,null,null,null,null,null,null,null,37]
["Лесной пер.",null,null,null,null,null,null,null,null,null,null,null,null,null,null,null,null,null,null,null,null,null,null,null,null,null,null,null,null,null,null,null,null,null,null,null,null,null,null,null,40]
["Мичурина"]
["Московская"]
["Нахимова"]
["Первомайская"]
["Пирогова"]
["Пл.Октяб.револ."]
["Покровского"]
["Полевая"]
["Свердлова"]
["Советская"]
["Стрелецкая"]
["Стрелка"]
["Сурский тракт"]
["Тельмана"]
["Транспортная"]
["Урицкого"]
["Фабричный пер."]
["Фестивальная"]
["Чайковского"]
["Чапаева"]
["Чернышевского"]
["Школьный проезд"]
["Школьный тупик"]
["Юбилейная"]
["Ярославская"]